bitfinex/quotes_BTCUSD_20251001
["timestamp","ask_amount","ask_price","bid_price","bid_amount"]
[1759276802687,0.00044666,114040.0,114030.0,7.52917447]
[1759276802886,0.00241666,114040.0,114030.0,7.4679874]
[1759276803147,0.00543666,114040.0,114030.0,7.4679874]
[1759276803429,0.00044666,114040.0,114030.0,7.23199247]
[1759276803640,0.00044666,114040.0,114030.0,7.2948341]
[1759276805280,0.00044666,114040.0,114030.0,8.5278741]
[1759276805481,0.00044666,114040.0,114030.0,8.70326654]
[1759276806079,0.00044666,114040.0,114030.0,8.79265201]
[1759276806640,0.00044666,114040.0,114030.0,8.72981131]
[1759276807032,0.0249,114050.0,114030.0,8.72981131]
[1759276807233,0.0249,114050.0,114040.0,7.82939439]
[1759276807430,0.0004,114050.0,114040.0,7.81185669]
[1759276807696,0.0249,114060.0,114050.0,0.17536168]
[1759276807899,0.00044666,114060.0,114050.0,7.62959668]
[1759276808219,0.00044666,114060.0,114050.0,7.77382405]
[1759276808487,0.00044666,114060.0,114050.0,7.80013237]
[1759276808750,0.00044666,114060.0,114050.0,7.54969237]
[1759276808968,0.00044666,114060.0,114050.0,8.68355963]
[1759276809184,0.00044666,114060.0,114050.0,8.75020811]
[1759276809405,0.00044666,114060.0,114050.0,8.43086617]
[1759276809623,0.00044666,114060.0,114050.0,8.60622785]
[1759276809836,0.00044666,114060.0,114050.0,8.51510785]
[1759276810058,0.00044666,114060.0,114050.0,8.60626785]
[1759276810704,0.00044666,114060.0,114050.0,8.15046785]
[1759276810906,0.00044666,114060.0,114050.0,8.51510785]
[1759276811145,0.00044666,114060.0,114050.0,8.60626785]
[1759276813561,1e-08,114060.0,114050.0,8.68829291]
[1759276813760,0.0004,114080.0,114070.0,0.20548283]
[1759276813987,0.00086665,114080.0,114070.0,7.6682303]
[1759276814181,0.00086665,114080.0,114070.0,7.6929203]
[1759276814393,0.00086665,114080.0,114070.0,7.69642768]
[1759276816438,0.00086665,114080.0,114070.0,7.44566768]
[1759276816636,0.00086665,114080.0,114070.0,8.42554768]
[1759276816837,0.00086665,114080.0,114070.0,8.51666768]
[1759276817043,0.00086665,114080.0,114070.0,8.51662768]
[1759276817213,0.00086665,114080.0,114070.0,7.44566768]
[1759276817628,0.00086665,114080.0,114070.0,8.51662768]
[1759276818028,0.00086665,114080.0,114070.0,8.51658768]
[1759276818273,0.00086665,114080.0,114070.0,7.44566768]
[1759276818561,0.00086665,114080.0,114070.0,8.51658768]
[1759276818766,0.00615665,114080.0,114070.0,8.39709031]
[1759276819332,0.00615665,114080.0,114070.0,7.32613031]
[1759276819536,0.00615665,114080.0,114070.0,8.39701031]
[1759276819780,0.00615665,114080.0,114070.0,7.08656538]
[1759276819974,0.00615665,114080.0,114070.0,7.26189631]
[1759276820391,0.00615665,114080.0,114070.0,8.33273631]
[1759276820592,0.00615665,114080.0,114070.0,7.26189631]
[1759276820804,0.00615665,114080.0,114070.0,8.33277631]
[1759276821592,0.00615665,114080.0,114070.0,8.33273631]
[1759276823692,0.00615665,114080.0,114070.0,8.24161631]
[1759276823928,0.00615665,114080.0,114070.0,8.33273631]
[1759276829126,0.00615665,114080.0,114070.0,7.87677631]
[1759276829327,0.00615665,114080.0,114070.0,8.33241631]
[1759276833293,0.00615665,114080.0,114070.0,8.39520357]
[1759276834765,0.00296665,114080.0,114070.0,8.39520357]
[1759276835348,0.00612665,114080.0,114070.0,8.39520357]
[1759276838827,0.00612665,114080.0,114070.0,8.33241631]
[1759276839030,0.00612665,114080.0,114070.0,8.41098917]
[1759276839711,0.00331575,114100.0,114090.0,0.1753002]
[1759276839899,0.08943211,114100.0,114090.0,7.54663758]
[1759276840120,0.09152211,114100.0,114090.0,7.57103758]
[1759276840321,0.09152211,114100.0,114090.0,7.5083482]
[1759276841554,0.09152211,114100.0,114090.0,7.57399372]
[1759276841743,0.09468211,114100.0,114090.0,7.57399372]
[1759276841944,0.09468211,114100.0,114090.0,7.6100537]
[1759276845353,0.09468211,114100.0,114090.0,7.3597737]
[1759276845577,0.09468211,114100.0,114090.0,8.4300937]
[1759276845800,0.09468211,114100.0,114090.0,8.1618515]
[1759276846024,0.09468211,114100.0,114090.0,8.3371117]
[1759276847408,0.09468211,114100.0,114090.0,8.6771117]
[1759276847876,0.26996694,114100.0,114090.0,8.6771117]
[1759276848423,0.09468211,114100.0,114090.0,8.6771117]
[1759276848653,0.26996694,114100.0,114090.0,7.6068317]
[1759276848859,0.26996694,114100.0,114090.0,8.6770317]
[1759276849172,0.26996694,114100.0,114090.0,8.4865312]
[1759276849375,0.09468211,114100.0,114090.0,8.4865312]
[1759276849601,0.26996694,114100.0,114090.0,8.4865312]
[1759276849806,0.26996694,114100.0,114090.0,8.0308512]
[1759276850038,0.26996694,114100.0,114090.0,8.4864912]
[1759276850631,0.26996694,114100.0,114090.0,8.2364512]
[1759276850835,0.26996694,114100.0,114090.0,8.4864912]
[1759276851395,0.26996694,114100.0,114090.0,8.5090712]
[1759276851606,0.26996694,114100.0,114090.0,8.57539388]
[1759276852011,0.26996694,114100.0,114090.0,8.6105924]
[1759276852566,0.26996694,114100.0,114090.0,7.5403924]
[1759276852747,0.26996694,114100.0,114090.0,8.6106324]
[1759276854014,0.09468211,114100.0,114090.0,8.6106324]
[1759276855599,0.26996694,114100.0,114090.0,8.6106324]
[1759276856129,0.09468211,114100.0,114090.0,8.6106324]
[1759276859145,0.09468211,114100.0,114090.0,8.67332178]
[1759276861667,0.09468211,114100.0,114090.0,8.67534178]
[1759276861868,0.09468211,114100.0,114090.0,8.67332178]
[1759276862836,0.07943211,114100.0,114090.0,8.6126524]
[1759276863214,0.08155211,114100.0,114090.0,8.6126524]
[1759276863415,0.08451211,114100.0,114090.0,8.6126524]
[1759276863633,0.08451211,114100.0,114090.0,8.6106324]
[1759276864209,0.08451211,114100.0,114090.0,8.67332178]
[1759276865366,4.664e-05,114100.0,114090.0,8.67858178]
[1759276865530,4.664e-05,114100.0,114090.0,8.67854178]
[1759276866435,4.664e-05,114100.0,114090.0,8.6158524]
[1759276866634,4.664e-05,114100.0,114090.0,8.64215578]
[1759276867237,4.664e-05,114100.0,114090.0,8.67230768]
[1759276867590,4.664e-05,114100.0,114090.0,7.60210768]
[1759276867746,4.664e-05,114100.0,114090.0,8.21666768]
[1759276867952,4.664e-05,114100.0,114090.0,8.67230768]
[1759276868296,4.664e-05,114100.0,114090.0,7.60210768]
[1759276868501,4.664e-05,114100.0,114090.0,8.67230768]
[1759276868922,0.00204664,114100.0,114090.0,7.59395578]
[1759276869072,0.00204664,114100.0,114090.0,8.66415578]
[1759276869275,4.664e-05,114100.0,114090.0,8.64215578]
[1759276869478,0.00204664,114100.0,114090.0,8.66715578]
[1759276869897,0.00204664,114100.0,114090.0,7.59695578]
[1759276870435,0.00204664,114100.0,114090.0,8.66707578]
[1759276870857,0.00204664,114100.0,114090.0,7.59695578]
[1759276871299,0.00204664,114100.0,114090.0,8.66711578]
[1759276872102,0.00204664,114100.0,114090.0,7.59695578]
[1759276872300,0.00204664,114100.0,114090.0,8.21143578]
[1759276872505,0.00204664,114100.0,114090.0,8.66703578]
[1759276872808,0.00204664,114100.0,114090.0,7.59695578]
[1759276872978,0.00204664,114100.0,114090.0,8.74560864]
[1759276874780,0.00204664,114100.0,114090.0,7.67552864]
[1759276874976,0.00204664,114100.0,114090.0,7.31959927]
[1759276875209,0.00204664,114100.0,114090.0,8.38959927]
[1759276875461,0.00204664,114100.0,114090.0,7.31959927]
[1759276875670,0.00204664,114100.0,114090.0,8.38959927]
[1759276876409,0.00204664,114100.0,114090.0,7.93399927]
[1759276876613,0.00204664,114100.0,114090.0,8.38959927]
[1759276879183,0.00204664,114100.0,114090.0,7.31959927]
[1759276879554,0.00204664,114100.0,114090.0,8.38951927]
[1759276879753,0.00204664,114100.0,114090.0,7.31959927]
[1759276879957,0.00204664,114100.0,114090.0,8.38951927]
[1759276880909,0.00204664,114100.0,114090.0,7.31959927]
[1759276881213,0.00204664,114100.0,114090.0,8.38947927]
[1759276885003,0.00204664,114100.0,114090.0,8.32683578]
[1759276885203,0.00204664,114100.0,114090.0,8.40540864]
[1759276886453,0.00204664,114100.0,114090.0,8.22227164]
[1759276886661,0.00204664,114100.0,114090.0,8.20631216]
[1759276887838,0.00204664,114100.0,114090.0,8.20630733]
[1759276888008,0.00204664,114100.0,114090.0,8.14369878]
[1759276888817,0.00204664,114100.0,114090.0,8.20630893]
[1759276889070,0.00204664,114100.0,114090.0,8.23308425]
[1759276889276,1e-08,114110.0,114100.0,0.54543673]
[1759276889485,0.0004,114140.0,114130.0,0.17523876]
[1759276889706,0.0005399,114140.0,114130.0,7.60114276]
[1759276889889,0.0005399,114140.0,114130.0,7.62430276]
[1759276890048,0.0005399,114140.0,114130.0,7.62734276]
[1759276890248,0.0005399,114140.0,114130.0,7.26636845]
[1759276890666,0.0005399,114140.0,114130.0,7.17524845]
[1759276891236,0.0005399,114140.0,114130.0,7.30578582]
[1759276891448,0.0005399,114140.0,114130.0,7.90578582]
[1759276892390,1e-08,114150.0,114140.0,0.5453753]
[1759276892610,1e-08,114160.0,114150.0,1.14535995]
[1759276892811,0.0065,114180.0,114170.0,0.17517736]
[1759276893072,0.00663988,114180.0,114170.0,7.14351136]
[1759276893246,0.00663988,114180.0,114170.0,7.17180136]
[1759276893394,0.00663988,114180.0,114170.0,7.17844124]
[1759276894275,0.00874988,114180.0,114170.0,7.17540124]
[1759276894679,0.00663988,114180.0,114170.0,7.17844124]
[1759276894979,0.00663988,114180.0,114170.0,7.18444124]
[1759276895200,0.00663988,114180.0,114170.0,7.13286498]
[1759276895388,0.00663988,114180.0,114170.0,8.58984805]
[1759276895600,0.01178988,114180.0,114170.0,7.99431805]
[1759276895801,0.1869519,114180.0,114170.0,7.60738081]
[1759276895980,0.1869519,114180.0,114170.0,6.94591774]
[1759276896151,0.1869519,114180.0,114170.0,8.1912551]
[1759276896350,0.1869519,114180.0,114170.0,8.01607774]
[1759276896594,0.1869519,114180.0,114170.0,8.1912551]
[1759276897365,0.01178988,114180.0,114170.0,8.1912551]
[1759276897814,0.01178988,114180.0,114170.0,8.1912951]
[1759276898431,0.00663988,114180.0,114170.0,8.1933851]
[1759276898650,0.0002,114200.0,114190.0,0.34]
[1759276898865,0.00277616,114200.0,114190.0,7.57483615]
[1759276899070,0.00277616,114200.0,114190.0,8.32849068]
[1759276899277,0.00581616,114200.0,114190.0,7.87309068]
[1759276899520,0.00581616,114200.0,114190.0,7.32195891]
[1759276899723,0.00581616,114200.0,114190.0,8.41851978]
[1759276899937,0.00581616,114200.0,114190.0,8.30103891]
[1759276900201,0.00581616,114200.0,114190.0,8.39211891]
[1759276900467,0.00581616,114200.0,114190.0,7.96103891]
[1759276900718,0.00581616,114200.0,114190.0,6.98195891]
[1759276900956,0.00581616,114200.0,114190.0,8.05611891]
[1759276901199,0.1809475,114200.0,114190.0,8.05611891]
[1759276901476,0.27033297,114200.0,114190.0,6.81081223]
[1759276901700,0.27033297,114200.0,114190.0,7.88101223]
[1759276903733,0.27033297,114200.0,114190.0,7.815094]
[1759276903927,0.27033297,114200.0,114190.0,7.109294]
[1759276904140,0.27033297,114200.0,114190.0,7.815134]
[1759276905575,0.27033297,114200.0,114190.0,7.615735]
[1759276905771,0.27033297,114200.0,114190.0,6.545615]
[1759276905920,0.27033297,114200.0,114190.0,7.251535]
[1759276906544,0.09520163,114200.0,114190.0,7.42668168]
[1759276906750,0.1809475,114200.0,114190.0,7.42668168]
[1759276907160,0.1809475,114200.0,114190.0,7.251535]
[1759276907361,0.1809475,114200.0,114190.0,7.42668168]
[1759276908173,0.1809475,114200.0,114190.0,7.251535]
[1759276908389,0.1809475,114200.0,114190.0,7.42668168]
[1759276909538,0.1809475,114200.0,114190.0,7.251535]
[1759276910806,0.27033297,114200.0,114190.0,6.545615]
[1759276911014,0.27033297,114200.0,114190.0,1.09732]
[1759276911432,0.27033297,114200.0,114190.0,0.02716]
[1759276911658,0.27033297,114200.0,114190.0,0.733]
[1759276911871,0.29662181,114200.0,114190.0,0.73352]
[1759276912300,0.29662181,114200.0,114190.0,0.72952]
[1759276913605,0.29662181,114200.0,114190.0,0.02316]
[1759276913808,0.29662181,114200.0,114190.0,0.73048]
[1759276914221,0.29662181,114200.0,114190.0,0.02416]
[1759276914402,0.29662181,114200.0,114190.0,0.73048]
[1759276914809,0.29662181,114200.0,114190.0,0.73044]
[1759276914993,0.27033297,114200.0,114190.0,0.73044]
[1759276915197,0.29662192,114200.0,114190.0,0.73044]
[1759276915393,0.27033297,114200.0,114190.0,0.73044]
[1759276917353,0.27850041,114200.0,114190.0,0.73044]
[1759276918515,0.27850662,114200.0,114190.0,0.73044]
[1759276921691,0.27850662,114200.0,114190.0,0.02416]
[1759276921901,0.27850662,114200.0,114190.0,0.73072]
[1759276925807,0.27850662,114200.0,114190.0,1.23072]
[1759276929376,0.27335662,114200.0,114190.0,0.73072]
[1759276930425,0.27531662,114200.0,114190.0,0.90586668]
[1759276930662,0.27531662,114200.0,114190.0,0.73072]
[1759276930880,0.27834662,114200.0,114190.0,0.73072]
[1759276931330,0.27531662,114200.0,114190.0,0.73072]
[1759276931658,0.27834662,114200.0,114190.0,0.73072]
[1759276933266,0.27834662,114200.0,114190.0,0.02416]
[1759276933503,0.27834662,114200.0,114190.0,0.73048]
[1759276934190,0.27834662,114200.0,114190.0,1.23048]
[1759276935103,0.27834662,114200.0,114190.0,0.52416]
[1759276935314,0.27834662,114200.0,114190.0,0.97948]
[1759276935553,0.30849852,114200.0,114190.0,1.23052]
[1759276936282,0.33479015,114200.0,114190.0,1.23052]
[1759276939384,0.33479015,114200.0,114190.0,0.73052]
[1759276939597,0.36990158,114200.0,114190.0,0.73052]
[1759276939947,0.33479015,114200.0,114190.0,0.73052]
[1759276941163,0.37102227,114200.0,114190.0,0.73052]
[1759276942538,0.33479015,114200.0,114190.0,0.73052]
[1759276942767,0.33479015,114200.0,114190.0,0.73032]
[1759276943433,0.33479015,114200.0,114190.0,0.73024]
[1759276943655,0.33479015,114200.0,114190.0,0.52416]
[1759276943899,0.33479015,114200.0,114190.0,1.23024]
[1759276944590,0.33479015,114200.0,114190.0,0.52416]
[1759276944814,0.33479015,114200.0,114190.0,1.2302]
[1759276944972,0.33479015,114200.0,114190.0,1.23016]
[1759276945326,0.33479015,114200.0,114190.0,0.52416]
[1759276945517,0.33479015,114200.0,114190.0,1.23016]
[1759276945864,0.33479015,114200.0,114190.0,0.52416]
[1759276946062,0.83925609,114200.0,114190.0,0.97948]
[1759276946280,0.77479015,114200.0,114190.0,1.23012]
[1759276946715,0.85549015,114200.0,114190.0,0.52416]
[1759276946919,0.88049015,114200.0,114190.0,0.05344321]
[1759276947163,0.18304868,114190.0,114180.0,0.36428]
[1759276947382,0.17519271,114160.0,114150.0,0.11965916]
[1759276947608,0.26960818,114160.0,114150.0,1.19001916]
[1759276947814,0.26665818,114160.0,114150.0,1.19198916]
[1759276948140,0.26665818,114160.0,114150.0,1.2263233]
[1759276948141,0.26960818,114160.0,114150.0,1.2263233]
[1759276948349,0.26960818,114160.0,114150.0,1.15336721]
[1759276948675,0.26960818,114160.0,114150.0,1.21963065]
[1759276948872,0.26960818,114160.0,114150.0,1.22663065]
[1759276949044,0.26960818,114160.0,114150.0,1.24948065]
[1759276950532,0.26665818,114160.0,114150.0,1.24948065]
[1759276950781,0.08938547,114160.0,114150.0,1.4266587]
[1759276951009,0.08938547,114160.0,114150.0,7.9482037]
[1759276951225,0.02316,114170.0,114160.0,0.17519271]
[1759276951437,0.08938547,114170.0,114160.0,6.69870771]
[1759276951642,0.08938547,114170.0,114160.0,6.76826078]
[1759276951819,0.26456283,114170.0,114160.0,6.76826078]
[1759276951996,0.26456283,114170.0,114160.0,6.76517078]
[1759276952415,0.09146547,114170.0,114160.0,6.76517078]
[1759276952622,0.08938547,114170.0,114160.0,6.76817078]
[1759276952784,0.09146547,114170.0,114160.0,6.76817078]
[1759276954088,0.08938547,114170.0,114160.0,6.76817078]
[1759276954972,0.09146547,114170.0,114160.0,6.76817078]
[1759276955750,0.08938547,114170.0,114160.0,6.76817078]
[1759276955958,0.08938547,114170.0,114160.0,7.02194078]
[1759276956415,0.08938547,114170.0,114160.0,7.01885078]
[1759276957011,0.08938547,114170.0,114160.0,6.97214771]
[1759276957211,0.08938547,114170.0,114160.0,7.0347131]
[1759276957421,0.10386,114180.0,114170.0,0.17517736]
[1759276957626,0.17008547,114180.0,114170.0,0.47469643]
[1759276957766,0.34524749,114180.0,114170.0,0.50063643]
[1759276958228,0.17008547,114180.0,114170.0,0.49754643]
[1759276958372,0.17216547,114180.0,114170.0,0.49754643]
[1759276958577,0.17511547,114180.0,114170.0,0.49557643]
[1759276958929,0.34732749,114180.0,114170.0,0.49854643]
[1759276959111,0.17008547,114180.0,114170.0,0.49854643]
[1759276959470,0.17216547,114180.0,114170.0,0.49657643]
[1759276959686,0.35027749,114180.0,114170.0,0.49657643]
[1759276960293,0.35027749,114180.0,114170.0,0.49854643]
[1759276960504,0.34732749,114180.0,114170.0,0.49854643]
[1759276960927,0.34524749,114180.0,114170.0,0.49854643]
[1759276961107,0.34732749,114180.0,114170.0,0.49854643]
[1759276961357,0.35027749,114180.0,114170.0,0.49657643]
[1759276961720,0.34732749,114180.0,114170.0,0.49854643]
[1759276961975,0.34732749,114180.0,114170.0,0.49657643]
[1759276962220,0.34524749,114180.0,114170.0,0.50163643]
[1759276962432,0.34524749,114180.0,114170.0,0.49854643]
[1759276962836,0.34732749,114180.0,114170.0,0.49854643]
[1759276962976,0.35027749,114180.0,114170.0,0.49657643]
[1759276963578,0.34524749,114180.0,114170.0,0.49854643]
[1759276963934,0.34732749,114180.0,114170.0,0.49854643]
[1759276964164,0.34732749,114180.0,114170.0,0.58962643]
[1759276964165,0.34524749,114180.0,114170.0,0.58962643]
[1759276964481,0.34514749,114180.0,114170.0,0.58962643]
[1759276964699,0.34722749,114180.0,114170.0,0.58962643]
[1759276964865,0.35017749,114180.0,114170.0,0.58765643]
[1759276966531,0.34722749,114180.0,114170.0,0.58765643]
[1759276966708,0.35017749,114180.0,114170.0,0.58765643]
[1759276966908,0.35017749,114180.0,114170.0,0.1169]
[1759276966909,0.34514749,114180.0,114170.0,0.1169]
[1759276967143,0.34514749,114180.0,114170.0,0.29207736]
[1759276967724,0.35017749,114180.0,114170.0,0.11493]
[1759276967930,0.35017749,114180.0,114170.0,0.02385]
[1759276968245,0.35017749,114180.0,114170.0,0.72957]
[1759276968823,0.35017749,114180.0,114170.0,0.73154]
[1759276969075,0.35017749,114180.0,114170.0,0.72957]
[1759276969254,0.35017749,114180.0,114170.0,0.90474736]
[1759276969458,0.34514749,114180.0,114170.0,0.90474736]
[1759276969816,0.34514749,114180.0,114170.0,0.90671736]
[1759276970061,0.34514749,114180.0,114170.0,0.73161]
[1759276970602,0.34721749,114180.0,114170.0,0.90678736]
[1759276970807,0.34514749,114180.0,114170.0,0.90678736]
[1759276971025,0.35037749,114180.0,114170.0,0.90474736]
[1759276971593,0.34514749,114180.0,114170.0,7.42524236]
[1759276972362,0.34721749,114180.0,114170.0,7.42524236]
[1759276972855,0.34721749,114180.0,114170.0,7.248025]
[1759276973058,0.35037749,114180.0,114170.0,6.542305]
[1759276973265,0.35037749,114180.0,114170.0,7.248065]
[1759276973759,0.34830749,114180.0,114170.0,7.248065]
[1759276973966,0.34514749,114180.0,114170.0,7.250105]
[1759276974108,0.35037749,114180.0,114170.0,7.248065]
[1759276974976,0.34514749,114180.0,114170.0,7.42528236]
[1759276975675,0.34721749,114180.0,114170.0,7.42324236]
[1759276976004,0.34514749,114180.0,114170.0,7.42845236]
[1759276976197,0.34514749,114180.0,114170.0,7.253275]
[1759276977111,0.34721749,114180.0,114170.0,7.250105]
[1759276977339,0.35037749,114180.0,114170.0,7.248065]
[1759276977543,0.35037749,114180.0,114170.0,7.42324236]
[1759276977696,0.34514749,114180.0,114170.0,7.42845236]
[1759276978458,0.34721749,114180.0,114170.0,7.42528236]
[1759276978794,0.34514749,114180.0,114170.0,7.42528236]
[1759276978999,0.34514749,114180.0,114170.0,7.42845236]
[1759276979514,0.34721749,114180.0,114170.0,7.42528236]
[1759276979932,0.35037749,114180.0,114170.0,7.42324236]
[1759276980567,0.34721749,114180.0,114170.0,7.42528236]
[1759276980742,0.35037749,114180.0,114170.0,7.42324236]
[1759276981138,0.35037749,114180.0,114170.0,7.248065]
[1759276981665,0.35037749,114180.0,114170.0,7.250105]
[1759276981854,0.34721749,114180.0,114170.0,7.14507936]
[1759276982055,0.37032749,114180.0,114170.0,6.969902]
[1759276982305,0.37348749,114180.0,114170.0,7.14303936]
[1759276982488,0.37032749,114180.0,114170.0,7.14507936]
[1759276982702,0.37032749,114180.0,114170.0,6.969902]
[1759276982904,0.37032749,114180.0,114170.0,6.967862]
[1759276983056,0.37348749,114180.0,114170.0,7.14303936]
[1759276983714,0.37348749,114180.0,114170.0,6.967862]
[1759276983932,0.37032749,114180.0,114170.0,6.992732]
[1759276984144,0.37032749,114180.0,114170.0,7.16790936]
[1759276984324,0.37032749,114180.0,114170.0,6.992732]
[1759276984626,0.37348749,114180.0,114170.0,6.990692]
[1759276985057,0.37348749,114180.0,114170.0,7.53002936]
[1759276985512,0.37348749,114180.0,114170.0,6.46010936]
[1759276985696,0.37348749,114180.0,114170.0,7.16566936]
[1759276985990,0.37348749,114180.0,114170.0,6.990492]
[1759276986193,0.37032749,114180.0,114170.0,6.992532]
[1759276986409,0.37032749,114180.0,114170.0,7.16770936]
[1759276986604,0.37032749,114180.0,114170.0,6.992532]
[1759276987021,0.37348749,114180.0,114170.0,7.16566936]
[1759276987396,0.37348749,114180.0,114170.0,6.990492]
[1759276987783,0.37348749,114180.0,114170.0,6.284932]
[1759276987991,0.37348749,114180.0,114170.0,6.992532]
[1759276988194,0.37032749,114180.0,114170.0,6.992532]
[1759276988831,0.29288749,114180.0,114170.0,0.72831]
[1759276988989,0.29288749,114180.0,114170.0,0.09108]
[1759276989190,0.17517736,114170.0,114160.0,0.17519256]
[1759276989400,0.26979283,114170.0,114160.0,6.89269456]
[1759276989602,0.29290283,114170.0,114160.0,6.89269456]
[1759276990352,0.29290283,114170.0,114160.0,7.14593456]
[1759276991063,0.28974283,114170.0,114160.0,7.14797456]
[1759276991647,0.29290283,114170.0,114160.0,7.14797456]
[1759276992052,0.29290283,114170.0,114160.0,7.14593456]
[1759276993450,0.28974283,114170.0,114160.0,7.14797456]
[1759276993834,0.29290283,114170.0,114160.0,7.14797456]
[1759276994034,0.29290283,114170.0,114160.0,7.14593456]
[1759276994630,0.11565547,114170.0,114160.0,7.14797456]
[1759276994837,0.11249547,114170.0,114160.0,7.15114456]
[1759276995171,0.02311,114170.0,114160.0,7.15114456]
[1759276998838,0.02311,114170.0,114160.0,7.49114456]
[1759276999041,0.02311,114170.0,114160.0,7.55370995]
[1759276999560,0.02311,114170.0,114160.0,7.91802995]
[1759276999767,0.02311,114170.0,114160.0,6.84806995]
[1759277000006,0.02311,114170.0,114160.0,7.91826995]
[1759277000213,0.02311,114170.0,114160.0,6.84806995]
[1759277000350,0.02311,114170.0,114160.0,7.91822995]
[1759277001800,0.02311,114170.0,114160.0,6.84806995]
[1759277002053,0.02311,114170.0,114160.0,7.91822995]
[1759277003104,0.02511,114170.0,114160.0,6.84489995]
[1759277003308,0.02833,114170.0,114160.0,7.85241456]
[1759277003704,0.02833,114170.0,114160.0,7.76133456]
[1759277003910,0.02833,114170.0,114160.0,7.85241456]
[1759277004670,0.20350736,114170.0,114160.0,6.44029456]
[1759277004895,0.02833,114170.0,114160.0,7.51025456]
[1759277005816,0.20350736,114170.0,114160.0,7.51025456]
[1759277006199,0.20350736,114170.0,114160.0,6.44029456]
[1759277006336,0.20350736,114170.0,114160.0,7.51025456]
[1759277008312,0.29289283,114170.0,114160.0,6.265102]
[1759277008516,0.29289283,114170.0,114160.0,7.335102]
[1759277010058,0.29289283,114170.0,114160.0,6.265102]
[1759277010265,0.29289283,114170.0,114160.0,7.335142]
[1759277011507,0.29289283,114170.0,114160.0,7.51033471]
[1759277012237,0.29289283,114170.0,114160.0,7.335142]
[1759277013141,0.29289283,114170.0,114160.0,7.51033471]
[1759277013604,0.29289283,114170.0,114160.0,7.335142]
[1759277015671,0.29289283,114170.0,114160.0,7.335102]
[1759277017162,0.29289283,114170.0,114160.0,6.265102]
[1759277017367,0.29289283,114170.0,114160.0,7.335062]
[1759277017568,0.29289283,114170.0,114160.0,7.086081]
[1759277017867,0.29289283,114170.0,114160.0,0.003]
[1759277018270,0.29289283,114170.0,114160.0,1.20876]
[1759277018472,0.29289283,114170.0,114160.0,0.70876]
[1759277019171,0.29289283,114170.0,114160.0,0.003]
[1759277019355,0.29289283,114170.0,114160.0,0.70876]
[1759277019955,0.29289283,114170.0,114160.0,0.003]
[1759277020183,0.29289283,114170.0,114160.0,0.70876]
[1759277020398,0.17519271,114160.0,114150.0,0.42667006]
[1759277020536,0.26657818,114160.0,114150.0,6.89732106]
[1759277020731,0.29146818,114160.0,114150.0,6.834971]
[1759277020988,0.29468818,114160.0,114150.0,7.04500906]
[1759277021198,0.29468818,114160.0,114150.0,7.04287906]
[1759277021717,0.29468818,114160.0,114150.0,7.29528906]
[1759277021852,0.29468818,114160.0,114150.0,7.29315906]
[1759277022066,0.29146818,114160.0,114150.0,7.36197772]
[1759277022267,0.29468818,114160.0,114150.0,7.36197772]
[1759277022472,0.29468818,114160.0,114150.0,7.18463967]
[1759277022698,0.29468818,114160.0,114150.0,7.35984772]
[1759277023051,0.29146818,114160.0,114150.0,7.36197772]
[1759277023200,0.29146818,114160.0,114150.0,7.36697772]
[1759277023401,0.29468818,114160.0,114150.0,7.36484772]
[1759277023748,0.29146818,114160.0,114150.0,7.36697772]
[1759277023975,0.28946818,114160.0,114150.0,7.36998772]
[1759277024288,0.28946818,114160.0,114150.0,7.36697772]
[1759277024527,0.29146818,114160.0,114150.0,7.36697772]
[1759277024680,0.29468818,114160.0,114150.0,7.36697772]
[1759277025088,0.28946818,114160.0,114150.0,7.36697772]
[1759277025297,0.28946818,114160.0,114150.0,7.36998772]
[1759277025648,0.29146818,114160.0,114150.0,7.36697772]
[1759277026048,0.29468818,114160.0,114150.0,7.36697772]
[1759277026293,0.28946818,114160.0,114150.0,7.36998772]
[1759277026704,0.11427547,114160.0,114150.0,7.36998772]
[1759277026909,0.28946818,114160.0,114150.0,7.36998772]
[1759277027117,0.11427547,114160.0,114150.0,7.36998772]
[1759277029719,0.02489,114160.0,114150.0,7.36998772]
[1759277030136,0.02489,114160.0,114150.0,7.73627999]
[1759277030384,0.02489,114160.0,114150.0,7.79884538]
[1759277033486,0.02489,114160.0,114150.0,7.73627999]
[1759277034167,0.02489,114160.0,114150.0,7.79889221]
[1759277034544,0.02489,114160.0,114150.0,7.79889583]
[1759277035668,0.02489,114160.0,114150.0,7.56704683]
[1759277036800,0.02489,114160.0,114150.0,7.50443099]
[1759277037536,0.02489,114160.0,114150.0,6.43443099]
[1759277037786,0.02489,114160.0,114150.0,7.50427099]
[1759277040385,0.02489,114160.0,114150.0,7.04887099]
[1759277040593,0.02489,114160.0,114150.0,7.50427099]
[1759277041934,0.02489,114160.0,114150.0,6.43443099]
[1759277042139,0.02489,114160.0,114150.0,7.50427099]
[1759277044740,0.02489,114160.0,114150.0,7.50435099]
[1759277045749,0.02489,114160.0,114150.0,7.56696739]
[1759277047491,0.02985,114160.0,114150.0,7.56182739]
[1759277047691,0.02985,114160.0,114150.0,7.56384739]
[1759277047866,0.02489,114160.0,114150.0,7.56683739]
[1759277048071,0.02489,114160.0,114150.0,7.27078204]
[1759277049564,0.02985,114160.0,114150.0,6.36387256]
[1759277049726,0.02985,114160.0,114150.0,7.40758029]
[1759277050128,0.02985,114160.0,114150.0,7.40960029]
[1759277050346,0.02688,114160.0,114150.0,7.40960029]
[1759277050984,0.02489,114160.0,114150.0,7.47494847]
[1759277051193,0.02688,114160.0,114150.0,7.47494847]
[1759277051527,0.02688,114160.0,114150.0,7.50124123]
[1759277052371,0.02985,114160.0,114150.0,7.49922123]
[1759277052573,0.02985,114160.0,114150.0,7.50124123]
[1759277052726,0.11923547,114160.0,114150.0,6.43124123]
[1759277052983,0.11923547,114160.0,114150.0,7.50124123]
[1759277053700,0.29442818,114160.0,114150.0,7.50124123]
[1759277053843,0.29442818,114160.0,114150.0,7.49922123]
[1759277054051,0.29442818,114160.0,114150.0,7.47292847]
[1759277054247,0.11923547,114160.0,114150.0,7.47292847]
[1759277054903,0.11923547,114160.0,114150.0,7.47494847]
[1759277055264,0.11626547,114160.0,114150.0,7.47494847]
[1759277056747,0.11626547,114160.0,114150.0,6.40494847]
[1759277056905,0.11626547,114160.0,114150.0,7.47494847]
[1759277057747,0.11923547,114160.0,114150.0,7.47494847]
[1759277058177,0.11923547,114160.0,114150.0,7.53554487]
[1759277058355,0.29442818,114160.0,114150.0,6.46554487]
[1759277058531,0.29442818,114160.0,114150.0,7.47296847]
[1759277058726,0.29442818,114160.0,114150.0,7.13296847]
[1759277058930,0.29442818,114160.0,114150.0,7.47292847]
[1759277059134,0.29442818,114160.0,114150.0,7.47300847]
[1759277059532,0.11923547,114160.0,114150.0,7.47300847]
[1759277060022,0.11626547,114160.0,114150.0,7.53762487]
[1759277060564,0.11626547,114160.0,114150.0,7.47500847]
[1759277066044,0.11626547,114160.0,114150.0,7.47496847]
[1759277067168,0.11949547,114160.0,114150.0,7.47496847]